bitfinex-derivatives/quotes_ETHF0:USTF0_20250422
["timestamp","ask_amount","ask_price","bid_price","bid_amount"]
[1745344907646,47.122,1703.9,1703.8,14.37435038]
[1745344907945,51.751,1703.9,1703.8,14.37435038]
[1745344908149,51.751,1703.9,1703.8,9.37435038]
[1745344908345,51.751,1703.9,1703.8,8.20135038]
[1745344908551,51.751,1703.9,1703.8,2.67542557]
[1745344908745,51.751,1703.9,1703.8,3.84842557]
[1745344908945,51.751,1703.9,1703.8,7.05622557]
[1745344909744,47.122,1703.9,1703.8,12.08570076]
[1745344909945,47.122,1703.9,1703.8,7.08570076]
[1745344910645,3.66999429,1703.9,1703.8,12.08570076]
[1745344911641,3.66999429,1703.9,1703.8,11.85001698]
[1745344911847,3.66999429,1703.9,1703.8,11.99736634]
[1745344912355,3.66999429,1703.9,1703.8,6.99736634]
[1745344912850,5.42959429,1703.9,1703.8,6.99736634]
[1745344913155,6.60252429,1703.9,1703.8,0.96184936]
[1745344913452,3.66999429,1703.9,1703.8,5.34264936]
[1745344913651,8.29899429,1703.9,1703.8,5.37209796]
[1745344914053,3.66999429,1703.9,1703.8,5.37209796]
[1745344914249,3.66999429,1703.9,1703.8,10.37209796]
[1745344914549,0.00881186,1704.0,1703.9,1.17293]
[1745344914754,9.00941,1704.4,1703.9,1.17293]
[1745344914755,4.629,1704.3,1703.9,3.38459796]
[1745344914956,1.17285,1704.1,1703.9,3.08729796]
[1745344915157,1.17285,1704.1,1703.9,6.29508796]
[1745344915158,6.322,1704.1,1703.9,6.29508796]
[1745344915354,7.49485,1704.1,1704.0,0.20624656]
[1745344915857,6.322,1704.1,1704.0,3.11670656]
[1745344916060,7.49479,1704.1,1704.0,0.20624656]
[1745344916249,9.11139,1704.1,1704.0,0.20624656]
[1745344916856,0.93723484,1703.9,1703.8,0.8145]
[1745344917056,1.173,1703.8,1703.7,6.12373186]
[1745344917258,2.7896,1703.8,1703.7,6.12373186]
[1745344917555,2.7896,1703.8,1703.7,4.95256046]
[1745344917755,2.7896,1703.8,1703.7,6.0079303]
[1745344917957,2.7896,1703.8,1703.7,0.0294486]
[1745344918155,9.1116,1703.8,1703.7,0.0294486]
[1745344918651,1.17307,1703.7,1703.6,0.0276]
[1745344918853,7.41867,1703.7,1703.6,0.03641186]
[1745344919158,12.5676,1703.7,1703.5,1.17318]
[1745344919461,12.5676,1703.7,1703.5,1.17317]
[1745344919660,40.8,1703.6,1703.5,1.17317]
[1745344919860,41.97317,1703.6,1703.5,0.0276]
[1745344920164,50.06197,1703.6,1703.5,0.0276]
[1745344920362,50.06197,1703.6,1703.4,7.58763186]
[1745344920566,50.06197,1703.6,1703.5,1.1732]
[1745344920861,1.1732,1703.5,1703.4,2.35701186]
[1745344921057,3.7619,1703.5,1703.4,2.38461186]
[1745344921255,8.7619,1703.5,1703.4,2.41407241]
[1745344921460,12.8797,1703.5,1703.4,2.41407241]
[1745344921755,51.339,1703.5,1703.4,3.55974241]
[1745344921955,52.5122,1703.5,1703.4,3.58920296]
[1745344922262,51.751,1703.5,1703.4,3.58920296]
[1745344922463,52.9242,1703.5,1703.4,3.58920296]
[1745344922660,51.751,1703.5,1703.4,5.34920296]
[1745344922857,51.751,1703.5,1703.4,8.55700296]
[1745344923056,6.28373954,1703.5,1703.4,14.75300296]
[1745344923650,6.28373954,1703.5,1703.4,12.34588186]
[1745344923857,6.28373954,1703.5,1703.4,12.43426351]
[1745344924961,6.28373954,1703.5,1703.4,7.46372406]
[1745344926057,6.28373954,1703.5,1703.4,7.34588186]
[1745344926259,6.28373954,1703.5,1703.4,3.24903318]
[1745344926464,7.45693954,1703.5,1703.4,0.14718524]
[1745344926663,12.45693954,1703.5,1703.4,0.14718524]
[1745344926963,15.96235954,1703.5,1702.8,4.38143]
[1745344927170,1.17339,1703.3,1703.0,4.38132]
[1745344927365,2.91891,1703.2,1703.1,0.02934304]
[1745344927551,1.7455,1703.2,1703.1,0.02934304]
[1745344927755,1.7455,1703.2,1703.1,1.20282304]
[1745344927957,6.3755,1703.2,1703.1,2.95142304]
[1745344928156,6.322,1703.2,1703.1,7.95142304]
[1745344928460,6.322,1703.2,1703.1,10.28582304]
[1745344928656,6.322,1703.2,1703.1,10.31516608]
[1745344929763,6.322,1703.2,1703.1,10.34450912]
[1745344930563,2.30683476,1703.2,1703.1,10.34450912]
[1745344930766,0.00881186,1703.3,1703.2,1.17341]
[1745344931068,0.00881186,1703.3,1703.2,11.82781]
[1745344931268,2.85190001,1703.3,1703.2,16.82781]
[1745344931462,4.722,1704.0,1703.9,1.17293]
[1745344931776,6.4682,1704.1,1704.0,1.17286]
[1745344932065,1.1507,1704.3,1704.1,1.17279]
[1745344932066,40.8,1704.2,1704.1,1.17279]
[1745344932369,7.64076,1704.5,1704.3,1.1726]
[1745344932558,0.00881186,1704.3,1704.1,3.2078]
[1745344932767,41.98153186,1704.3,1704.1,3.2078]
[1745344932964,41.98153186,1704.3,1704.2,1.17272]
[1745344933169,47.13081186,1704.3,1704.2,1.29009216]
[1745344933560,50.04966186,1704.3,1704.2,1.29009216]
[1745344933961,50.04966186,1704.3,1704.2,1.30338776]
[1745344934164,48.87701186,1704.3,1704.2,1.2021506]
[1745344935767,50.04966186,1704.3,1704.2,1.2021506]
[1745344935971,1.17279,1704.1,1704.0,3.21661186]
[1745344936266,7.49479,1704.1,1704.0,0.00881186]
[1745344936471,6.322,1704.1,1704.0,1.18167186]
[1745344937069,7.49479,1704.1,1704.0,0.00881186]
[1745344938161,12.49479,1704.1,1704.0,1e-08]
[1745344938671,1.17293,1703.9,1703.8,3.2078]
[1745344938868,4.721,1703.9,1703.6,3.2078]
[1745344939073,1.611,1703.8,1703.7,1.17307]
[1745344939376,6.322,1703.9,1703.8,1.173]
[1745344939575,6.322,1703.9,1703.8,9.4101413]
[1745344939881,6.322,1703.9,1703.8,4.4101413]
[1745344943863,7.49493,1703.9,1703.8,4.4101413]
[1745344944168,8.1035,1703.9,1703.8,4.4101413]
[1745344944370,6.322,1703.9,1703.8,4.4101413]
[1745344946578,6.322,1703.9,1703.8,6.1967413]
[1745344946969,6.322,1703.9,1703.8,4.4101413]
[1745344947174,7.49493,1703.9,1703.8,4.4101413]
[1745344947668,10.48813,1703.9,1703.8,3.2371413]
[1745344947881,10.48813,1703.9,1703.8,1.2023413]
[1745344948479,9.27963,1703.9,1703.8,0.0293413]
[1745344949678,14.27963,1703.9,1703.8,0.0293413]
[1745344949986,1.17327,1703.5,1703.3,3.2078]
[1745344950178,1.17327,1703.5,1703.4,1.17327]
[1745344950371,2.93302,1703.5,1703.1,3.2078]
[1745344950568,1.17341,1703.2,1703.1,4.38122]
[1745344950768,1.17348,1703.1,1703.0,9.02825002]
[1745344951074,48.2444,1703.1,1703.0,9.03706188]
[1745344951380,48.2444,1703.1,1703.0,10.69046188]
[1745344951567,48.2444,1703.1,1703.0,9.03706188]
[1745344951973,47.122,1703.1,1703.0,9.03706188]
[1745344952174,48.29548,1703.1,1703.0,1.18234186]
[1745344952380,48.29548,1703.1,1703.0,0.00881186]
[1745344953382,53.29548,1703.1,1703.0,0.00881186]
[1745344953770,53.29548,1703.1,1702.8,1.7306]
[1745344953771,1.17362,1702.9,1702.8,1.7306]
[1745344954181,12.49562,1702.9,1702.8,1.7306]
[1745344954479,54.45492,1702.9,1702.8,1.7306]
[1745344954874,1.17369,1702.8,1702.7,3.5415374]
[1745344955069,5.89469,1702.8,1702.7,3.5415374]
[1745344955274,10.98545226,1702.8,1702.7,3.5415374]
[1745344955471,51.78545226,1702.8,1702.7,2.3167674]
[1745344955679,51.78545226,1702.8,1702.6,7.69097804]
[1745344955680,1.17375,1702.7,1702.6,7.69097804]
[1745344955982,1.17424,1702.0,1701.9,1.17428]
[1745344956172,1.17431,1701.9,1701.8,2.89142]
[1745344956373,40.8,1701.9,1701.8,2.89142]
[1745344956575,41.97431,1701.9,1701.8,2.89142]
[1745344956776,40.8,1701.9,1701.8,2.89142]
[1745344957175,0.00881186,1702.0,1701.9,1.17431]
[1745344957488,10.8642,1702.7,1702.3,1.17398]
[1745344957676,2.93458,1702.6,1702.1,3.2078]
[1745344957982,1.17408,1702.3,1702.1,1.17417]
[1745344958179,1.17417,1702.1,1701.9,1.17427]
[1745344958475,40.80881186,1702.2,1701.9,2.93947]
[1745344958678,1.17424,1702.0,1701.9,2.93947]
[1745344958882,1.17417,1702.1,1702.0,1.17422]
[1745344959078,41.98295186,1702.2,1702.0,1.7591]
[1745344959274,6.322,1702.1,1702.0,2.93328]
[1745344959579,7.49617,1702.1,1702.0,2.93328]
[1745344959781,7.49617,1702.1,1701.8,0.00881185]
[1745344959782,1.17424,1702.0,1701.8,1.18315185]
[1745344960079,1.17431,1701.9,1701.8,1.76791185]
[1745344960481,5.71531,1701.9,1701.8,1.76791185]
[1745344961285,12.03731,1701.9,1701.8,1.76791185]
[1745344961680,15.24511,1701.9,1701.8,1e-08]
[1745344961981,20.24511,1701.9,1701.8,1e-08]
[1745344962576,12.03731,1701.9,1701.8,1e-08]
[1745344962782,15.24511,1701.9,1701.8,1e-08]
[1745344963683,12.03731,1701.9,1701.8,1e-08]
[1745344964377,10.863,1701.9,1701.8,1e-08]
[1745344964582,12.03731,1701.9,1701.8,1e-08]
[1745344971284,15.24511,1701.9,1701.8,1e-08]
[1745344971484,20.24511,1701.9,1701.8,1e-08]
[1745344971690,1.17458,1701.5,1701.4,1.6477]
[1745344971987,5.71758,1701.5,1701.4,1.6477]
[1745344972287,52.83964,1701.5,1701.2,4.3764]
[1745344972497,1.17465,1701.4,1701.3,1.6477]
[1745344972693,1.17465,1701.4,1701.3,2.82239]
[1745344972983,7.49658,1701.5,1701.4,1.17465]
[1745344973185,48.29658,1701.5,1701.4,2.82235]
[1745344973686,48.29658,1701.5,1701.4,4.8555]
[1745344973885,48.29658,1701.5,1701.4,6.03015]
[1745344975292,48.29658,1701.5,1701.4,1.6477]
[1745344975694,48.29658,1701.5,1701.4,2.82235]
[1745344975887,47.122,1701.5,1701.4,2.82235]
[1745344976085,48.29658,1701.5,1701.4,2.82235]
[1745344976286,47.122,1701.5,1701.4,2.82235]
[1745344976491,48.29658,1701.5,1701.4,2.82235]
[1745344976793,55.3298,1701.5,1701.2,1.1686]
[1745344976991,1.17472,1701.3,1701.2,1.1686]
[1745344977291,12.04072,1701.3,1701.2,1.1686]
[1745344977494,13.77672,1701.3,1701.2,1.1686]
[1745344977687,54.57672,1701.3,1701.2,1.1686]
[1745344977881,1.17479,1701.2,1701.1,1.6302]
[1745344978594,41.97479,1701.2,1701.1,1.6302]
[1745344979097,48.29679,1701.2,1701.1,1.6302]
[1745344979596,48.29679,1701.2,1701.1,2.80506]
[1745344979897,48.29679,1701.2,1701.1,2.8096]
[1745344980292,48.29679,1701.2,1701.1,3.98446]
[1745344980487,48.29679,1701.2,1701.1,7.19226]
[1745344980686,47.122,1701.2,1701.1,7.19226]
[1745344980895,48.29679,1701.2,1701.1,7.19226]
[1745344981093,48.29679,1701.2,1701.1,6.0174]
[1745344981896,48.29679,1701.2,1701.1,2.8096]
[1745344982086,48.29679,1701.2,1701.1,1.6302]
[1745344982291,50.02299,1701.2,1701.1,1.6302]
[1745344982488,59.72228,1701.2,1700.8,1.5776]
[1745344982688,1.1752,1700.6,1700.5,1.182]
[1745344982895,1.17532,1700.5,1700.2,3.2078]
[1745344983198,6.322,1700.5,1700.4,4.38314]
[1745344983497,1.95352817,1700.5,1700.4,1.17534]
[1745344983797,42.75352817,1700.5,1700.4,6.17534]
[1745344983998,42.75352817,1700.5,1700.4,1.17534]
[1745344984295,42.75352817,1700.5,1700.4,9.38314]
[1745344984602,0.77128817,1700.5,1700.4,9.38314]
[1745344984798,1.7295,1701.2,1700.9,1.175]
[1745344984996,1.7295,1701.4,1701.2,1.17479]
[1745344985302,6.33081186,1701.3,1701.2,1.17479]
[1745344985496,6.33081186,1701.3,1701.2,6.17479]
[1745344986603,6.33081186,1701.3,1701.2,7.41529]
[1745344987003,43.6712,1702.0,1701.9,1.17431]
[1745344987206,47.0755,1702.0,1701.9,1.17431]
[1745344987897,48.24979,1702.0,1701.5,6.14426]
[1745344988108,1.17431,1701.9,1701.8,0.00881186]
[1745344988294,4.01551,1701.9,1701.8,0.00881186]
[1745344988698,44.81551,1701.9,1701.8,0.00881186]
[1745344989000,40.8,1701.9,1701.8,1.18318186]
[1745344989198,6.322,1701.9,1701.8,1.18318186]
[1745344989401,3.04171,1701.9,1701.8,7.40578186]
[1745344989701,0.00881186,1702.1,1702.0,1.17424]
[1745344990002,0.00881186,1702.1,1702.0,4.38204]
[1745344990304,6.33081186,1702.1,1702.0,9.38204]
[1745344990503,3.83843186,1702.1,1702.0,11.07734]
[1745344991204,1.86e-06,1702.1,1702.0,11.07734]
[1745344991596,3.72e-06,1702.2,1702.1,1.17417]
[1745344992002,3.72e-06,1702.2,1702.1,6.17417]
[1745344992206,4.79268372,1702.2,1702.1,6.17417]
[1745344992409,3.37269372,1702.2,1702.1,6.17417]
[1745344992607,0.02655372,1702.2,1702.1,6.17417]
[1745344993111,3.72e-06,1702.2,1702.1,6.17417]
[1745344993407,5.58e-06,1702.3,1702.2,1.1741]
[1745344993600,5.58e-06,1702.3,1702.2,5.5776]
[1745344993802,5.58e-06,1702.3,1702.2,10.5776]
[1745344996904,5.58e-06,1702.3,1702.2,5.5776]
[1745344997113,5.58e-06,1702.3,1702.2,10.5776]
[1745344997509,2.86736558,1702.4,1702.3,1.17403]
[1745344997702,0.01455558,1702.4,1702.3,1.17403]
[1745344997902,5.58e-06,1702.4,1702.3,1.17403]
[1745344998111,42.5741,1702.9,1702.8,1.17369]
[1745344998504,47.5741,1702.9,1702.8,1.17369]
[1745344999211,53.8961,1702.9,1702.8,1.17369]
[1745344999604,1.17369,1702.8,1702.7,3.21661186]
[1745344999806,2.88219,1702.8,1702.7,0.00881186]
[1745345000014,7.88219,1702.8,1702.7,0.00881186]
[1745345000210,14.20419,1702.8,1702.7,0.00881186]
[1745345001113,55.00419,1702.8,1702.7,0.00881186]
[1745345002106,60.7005,1702.8,1701.9,3.2078]
[1745345002309,3.2078,1702.1,1701.5,6.14409]
[1745345002526,10.19741,1702.0,1701.3,1.2226]
[1745345002717,1.17467,1701.4,1701.2,15.17394133]
[1745345003014,1.6427,1701.3,1701.2,1.17479]
[1745345003213,1.6427,1701.3,1701.1,0.00881186]
[1745345003409,1.6427,1701.3,1701.2,1.17479]
[1745345003712,7.28642,1701.3,1701.2,1.17479]
[1745345003914,7.28642,1701.3,1701.1,1.18364186]
[1745345004115,13.60842,1701.3,1701.2,1.17479]
[1745345004306,13.60842,1701.3,1701.1,1.18364186]
[1745345004508,12.4337,1701.3,1701.2,1.17479]
[1745345005712,5.03991001,1701.3,1701.2,1.17479]
[1745345005913,3.82581001,1701.3,1701.2,6.17479]
[1745345006217,0.00881186,1701.4,1701.3,1.17472]
[1745345006509,1.86e-06,1701.4,1701.3,4.38252]
[1745345006712,6.0833,1702.3,1701.5,2.93646]
[1745345006916,1.17419,1702.1,1702.0,1.17422]
[1745345007212,6.322,1702.1,1701.8,3.2078]
[1745345007416,1.7692,1702.0,1701.9,1.17431]
[1745345008118,9.26544,1702.0,1701.9,1.17431]
[1745345008517,1.17431,1701.9,1701.8,1.18315186]
[1745345008819,2.94351,1701.9,1701.8,1.18315186]
[1745345009218,8.0912,1701.9,1701.8,1.18315186]
[1745345009411,6.322,1701.9,1701.8,4.39095186]
[1745345010319,6.322,1701.9,1701.8,6.10535186]
[1745345010521,8.028,1701.9,1701.8,6.10535186]
[1745345010721,6.322,1701.9,1701.8,6.10535186]
[1745345012419,1.71481186,1702.1,1702.0,1.17424]
[1745345013222,8.03681186,1702.1,1702.0,1.17424]
[1745345014016,6.33081186,1702.1,1702.0,4.38204]
[1745345014220,1.7439,1702.4,1702.3,1.17403]
[1745345014623,1.7439,1702.6,1702.5,1.17389]
[1745345014932,1.7439,1702.6,1702.5,4.38169]
[1745345015131,8.0659,1702.6,1702.5,4.38169]
[1745345017422,8.0659,1702.6,1702.5,1.17389]
[1745345017622,20.7427,1702.6,1702.3,1.17398]
[1745345017925,20.7427,1702.6,1702.5,1.17389]
[1745345018328,21.91652,1702.6,1702.4,1.17394]
[1745345018526,16.91652,1702.6,1702.3,1.17399]
[1745345018727,16.91652,1702.6,1702.4,1.17396]
[1745345019222,8.0659,1702.6,1702.5,1.17389]
[1745345020024,8.0659,1702.6,1702.5,4.38169]
[1745345020225,8.0659,1702.6,1702.5,1.17389]
[1745345024431,14.23972,1702.6,1702.3,3.2078]
[1745345024731,7.6348,1702.5,1702.4,1.17396]
[1745345024934,9.2614,1702.5,1702.4,1.17396]
[1745345025136,14.2614,1702.5,1702.4,1.17396]
[1745345025327,15.43531,1702.5,1702.4,1.17396]
[1745345025523,7.9486,1702.5,1702.4,1.17396]
[1745345025728,12.3756,1702.5,1702.4,1.17396]
[1745345028328,12.3756,1702.5,1702.4,4.38176]
[1745345028635,3.35072,1702.5,1702.4,9.38176]
[1745345028834,0.00881186,1702.7,1702.6,1.17382]
[1745345029632,4.48557186,1702.7,1702.6,4.38162]
[1745345029828,1.86e-06,1702.7,1702.6,9.38162]
[1745345030029,1.86e-06,1702.7,1702.6,10.46992]
[1745345030236,4.427,1703.1,1703.0,1.17355]
[1745345030627,2.95,1703.3,1703.2,1.17341]
[1745345030828,1.63807,1703.3,1703.2,1.17341]
[1745345031136,80.1408,1703.8,1703.6,1.1731]
[1745345031329,41.9731,1703.7,1703.6,1.1731]
[1745345031530,40.8,1703.7,1703.6,1.1731]
[1745345031731,45.8,1703.7,1703.6,1.1731]
[1745345032239,46.97307,1703.7,1703.6,1.1731]
[1745345032549,52.122,1703.7,1703.6,1.1731]
[1745345032837,53.29507,1703.7,1703.6,1.1731]
[1745345033037,55.05472,1703.7,1703.3,1.17328]
[1745345033332,6.14084,1703.5,1702.9,6.15062186]
[1745345033535,3.2078,1703.3,1702.9,6.15062186]
[1745345033737,1.17342,1703.2,1703.1,1.17342]
[1745345033929,4.38118,1703.3,1703.2,1.17341]
[1745345034131,5.49358,1703.3,1703.2,1.17341]
[1745345034329,50.1202,1703.3,1703.2,1.17341]
[1745345034529,48.2344,1703.3,1703.2,1.17341]
[1745345034937,49.40774,1703.3,1703.2,1.17341]
[1745345035131,51.10724,1703.3,1703.2,1.17341]
[1745345035333,1.17344,1703.2,1703.1,1.17343]
[1745345035638,2.87294,1703.2,1703.1,1.17343]
[1745345036037,43.67294,1703.2,1703.1,1.17343]
[1745345036238,43.67298,1703.2,1703.0,1.1735]
[1745345036440,4.426,1703.1,1703.0,1.1735]
[1745345036739,6.1255,1703.1,1703.0,1.1735]
[1745345037038,46.9255,1703.1,1703.0,1.1735]
[1745345037431,53.2475,1703.1,1703.0,1.1735]
[1745345037635,54.42098,1703.1,1703.0,1.1735]
[1745345038040,53.2475,1703.1,1703.0,1.1735]
[1745345038439,54.42098,1703.1,1703.0,1.1735]
[1745345038737,1.17355,1703.0,1702.9,0.00881186]
[1745345038941,1.17375,1702.7,1702.6,1.17379]
[1745345039541,1.17378,1702.7,1702.6,1.17379]
[1745345039833,2.80258,1702.7,1702.6,1.17379]
[1745345040527,1.17382,1702.6,1702.5,1.18264186]
[1745345040730,1.6288,1702.6,1702.5,1.18264186]
[1745345040933,2.80262,1702.6,1702.5,1.18264186]
[1745345041328,1.6288,1702.6,1702.5,1.18264186]
[1745345041532,9.12462,1702.6,1702.5,1.18264186]
[1745345041836,7.9508,1702.6,1702.5,1.18264186]
[1745345042034,9.12462,1702.6,1702.5,1.18264186]
[1745345042235,7.9508,1702.6,1702.5,2.93824186]
[1745345042436,9.12462,1702.6,1702.5,2.93824186]
[1745345043139,7.9508,1702.6,1702.5,2.93824186]
[1745345043740,9.12462,1702.6,1702.5,2.93824186]
[1745345044245,9.12462,1702.6,1702.5,1.76441186]
[1745345044645,9.12462,1702.6,1702.5,0.00881186]
[1745345045040,1.1741,1702.2,1702.1,1.6159]
[1745345045239,1.17414,1702.2,1702.0,3.2078]
[1745345045442,6.322,1702.2,1702.1,1.17412]
[1745345046244,6.322,1702.2,1702.1,6.17412]
[1745345047339,6.30437629,1702.2,1702.1,6.17412]
[1745345047539,7.08382,1702.6,1702.5,1.17389]
[1745345047746,1.17382,1702.6,1702.5,1.17389]
[1745345047948,1.17389,1702.5,1702.4,4.38171]
[1745345048150,1.17389,1702.5,1702.4,1.17391]
[1745345048544,7.49589,1702.5,1702.4,1.17391]
[1745345048740,1.17403,1702.3,1702.2,5.52103]
[1745345049045,2.90431,1702.4,1702.3,1.17403]
[1745345049241,6.322,1702.5,1702.4,1.17396]
[1745345049242,7.4959,1702.5,1702.4,1.17396]
[1745345049440,1.7303,1702.7,1702.5,1.17385]
[1745345049752,1.17388,1702.6,1702.5,1.17389]
[1745345049940,1.17389,1702.5,1702.4,2.4038]
[1745345050247,1.17389,1702.5,1702.4,1.2299]
[1745345050448,7.49589,1702.5,1702.4,2.40386]
[1745345050845,7.49589,1702.5,1702.4,1.2299]
[1745345051343,1.174,1702.4,1702.2,4.347]
[1745345051649,1.174,1702.4,1702.3,1.17397]
[1745345051948,6.322,1702.5,1702.4,1.17396]
[1745345052147,7.49589,1702.5,1702.4,1.17396]
[1745345053447,6.322,1702.5,1702.4,1.17396]
[1745345053650,7.49589,1702.5,1702.4,1.17396]
[1745345054242,6.322,1702.5,1702.4,1.17396]
[1745345054746,7.49589,1702.5,1702.4,1.17396]
[1745345056847,6.322,1702.5,1702.4,4.38176]
[1745345057243,4.98184,1702.5,1702.4,9.38176]
[1745345057548,3.36396,1702.5,1702.4,15.20376]
[1745345057746,3.36396,1702.5,1702.4,16.38716]
[1745345058147,0.00881186,1702.8,1702.7,1.17375]
[1745345058345,0.00881186,1702.8,1702.7,4.38155]
[1745345059350,6.33081186,1702.8,1702.7,4.38155]
[1745345061239,0.00881186,1702.8,1702.7,10.20355]
[1745345061441,0.00881186,1702.8,1702.7,15.20355]
[1745345063955,0.00881186,1702.8,1702.7,10.20355]
[1745345064846,0.00881186,1702.8,1702.7,15.20355]
[1745345065246,0.00881186,1702.8,1702.7,10.20355]
[1745345066657,0.00881186,1702.8,1702.7,11.96005]
[1745345066858,0.00881186,1702.8,1702.7,10.20355]
[1745345067155,6.33081186,1702.8,1702.7,11.96005]
[1745345068150,0.00881186,1702.8,1702.7,11.96005]
[1745345070159,6.33081186,1702.8,1702.7,11.96005]
[1745345070361,6.33081186,1702.8,1702.7,16.96005]
[1745345070752,1.77974154,1702.8,1702.7,16.96005]
[1745345071153,4.11257,1703.3,1703.2,1.17341]
[1745345071460,2.39466,1703.5,1703.4,1.17327]
[1745345071762,1.2214,1703.5,1703.3,3.2078]
[1745345072061,1.7202,1703.4,1703.3,4.38993186]
[1745345072362,2.89347,1703.4,1703.3,4.38993186]
[1745345072659,2.89347,1703.4,1703.3,3.21661186]
[1745345073161,9.21547,1703.4,1703.3,4.38995186]
[1745345073364,8.0422,1703.4,1703.3,4.38995186]
[1745345074249,9.21547,1703.4,1703.3,4.38995186]
[1745345074656,8.0422,1703.4,1703.3,4.38995186]
[1745345074958,14.21547,1703.4,1703.3,0.00881186]
[1745345076451,9.21547,1703.4,1703.3,0.00881186]
[1745345076656,14.21547,1703.4,1703.3,0.00881186]
[1745345076854,1.17341,1703.2,1703.1,5.578]
[1745345077055,1.17341,1703.2,1702.7,3.2078]
[1745345077056,1.17369,1702.8,1702.7,3.2078]
[1745345077255,2.93429,1702.8,1702.5,3.6001]
[1745345077463,1.17382,1702.6,1702.5,4.77397]
[1745345077663,1.17382,1702.6,1702.5,3.6001]
[1745345077863,1.6981,1702.6,1702.5,4.38169]
[1745345078268,8.0201,1702.6,1702.5,6.03439]
[1745345080366,6.322,1702.6,1702.5,6.03439]
[1745345080969,7.49582,1702.6,1702.5,4.8605]
[1745345081172,6.322,1702.6,1702.5,6.03439]
[1745345081468,7.49582,1702.6,1702.5,4.8605]
[1745345081870,9.27102,1702.6,1702.5,3.2078]
[1745345082665,14.27102,1702.6,1702.5,3.2078]
[1745345082973,1.17389,1702.5,1702.4,0.00881186]
[1745345083177,9.27109,1702.5,1702.4,0.00881186]
[1745345083467,8.0972,1702.5,1702.4,1.18277186]
[1745345083767,0.73518813,1702.5,1702.4,11.17577186]
[1745345083970,0.73518813,1702.5,1702.4,12.39217186]
[1745345084271,0.00881186,1702.7,1702.6,1.17382]
[1745345084468,1.70361186,1702.7,1702.6,4.38162]
[1745345084871,2.87736186,1702.7,1702.6,3.2078]
[1745345085167,9.19936186,1702.7,1702.6,1.17382]
[1745345085371,9.19936186,1702.7,1702.5,1.7852]
[1745345085571,1.6948,1702.6,1702.5,2.95909]
[1745345087569,0.00881186,1702.7,1702.6,1.17382]
[1745345087767,0.00881186,1702.7,1702.6,4.38162]
[1745345087969,1.86e-06,1702.7,1702.6,11.16812]
[1745345088767,1.7107,1703.2,1703.1,1.17348]
[1745345088970,1.7107,1703.2,1703.1,4.38128]
[1745345089170,8.0327,1703.2,1703.1,4.38128]
[1745345090263,6.322,1703.2,1703.1,4.38128]
[1745345091378,7.49541,1703.2,1703.1,4.38128]
[1745345091673,8.0539,1703.2,1703.1,4.38128]
[1745345091874,9.22731,1703.2,1703.1,3.2078]
[1745345093471,1.17355,1703.0,1702.9,7.3184]
[1745345094067,1.7469,1703.0,1702.9,8.49202]
[1745345094378,8.0689,1703.0,1702.9,8.49202]
[1745345094679,9.24245,1703.0,1702.9,7.3184]
[1745345095177,9.24245,1703.0,1702.9,4.1106]
[1745345095378,1.17362,1702.9,1702.8,2.85427]
[1745345095566,2.81662,1702.9,1702.8,2.85427]
[1745345095772,1.17369,1702.8,1702.7,3.2078]
[1745345095973,1.643,1702.8,1702.7,6.12433]
[1745345096181,9.13869,1702.8,1702.7,6.12433]
[1745345096478,7.965,1702.8,1702.7,6.12433]
[1745345097077,1.643,1702.8,1702.7,6.12433]
[1745345098674,1.17362,1702.9,1702.8,1.17363]
[1745345098870,2.86082,1702.9,1702.8,2.88133]
[1745345099272,8.0092,1702.9,1702.8,2.88133]
[1745345099776,9.18282,1702.9,1702.8,2.88133]
[1745345100174,6.322,1702.9,1702.8,2.88133]
[1745345100376,6.322,1702.9,1702.8,7.88133]
[1745345100889,6.322,1702.9,1702.8,2.88133]
[1745345101073,6.322,1702.9,1702.8,7.29533]
[1745345101273,2.86074,1703.1,1703.0,1.17355]
[1745345101578,1.6872,1703.1,1703.0,4.38135]
[1745345101879,2.86068,1703.1,1703.0,3.2078]
[1745345102074,9.18268,1703.1,1703.0,4.38135]
[1745345102585,8.0092,1703.1,1703.0,4.38135]
[1745345102785,9.18268,1703.1,1703.0,6.10935]
[1745345103085,14.18268,1703.1,1703.0,3.2078]
[1745345103275,1.17362,1702.9,1702.8,3.2078]
[1745345103476,1.17362,1702.9,1702.8,4.38149]
[1745345103982,2.86432,1702.9,1702.8,4.38149]
[1745345104279,9.18632,1702.9,1702.8,4.38149]
[1745345106577,8.0127,1702.9,1702.8,4.38149]
[1745345106781,9.18632,1702.9,1702.8,4.38149]
[1745345107178,6.322,1702.9,1702.8,4.38149]
[1745345107374,6.322,1702.9,1702.8,9.38149]
[1745345107574,6.322,1702.9,1702.8,6.04149]
[1745345108389,1.69911186,1703.3,1703.1,1.17342]
[1745345108580,1.17341,1703.2,1703.1,4.38122]
[1745345109383,6.322,1703.2,1703.1,4.38122]
[1745345110185,6.322,1703.2,1703.1,6.08532]
[1745345110685,7.9974,1703.2,1703.1,6.08532]
[1745345110888,1.17355,1703.0,1702.9,4.0675]
[1745345111685,2.92655,1703.0,1702.9,4.0675]
[1745345112186,9.24855,1703.0,1702.9,3.2078]
[1745345112777,1.17369,1702.8,1702.7,2.2458]
[1745345113281,14.24869,1702.8,1702.7,2.2458]
[1745345114179,1.17382,1702.6,1702.5,0.3254]
[1745345114785,2.79052,1702.6,1702.5,0.3254]
[1745345115095,7.79052,1702.6,1702.5,0.3254]
[1745345115289,14.11252,1702.6,1702.5,0.3254]
[1745345115588,54.91252,1702.6,1702.5,0.3254]
[1745345116089,1.17389,1702.5,1702.4,0.00881186]
[1745345116284,2.79059,1702.5,1702.4,0.00881186]
[1745345116780,1.6167,1702.5,1702.4,0.00881186]